fUSD/lending_fUSD_20260319
["ID","MTS","AMOUNT","RATE_DAILY","PERIOD"]
[408616705,1773958750313,-500.0,0.0001159,2]
[408616706,1773958750339,-500.0,0.0001159,2]
[408616707,1773958750366,-500.0,0.0001159,2]
[408616708,1773958750394,-500.0,0.0001159,2]
[408616709,1773958750422,-500.0,0.0001159,2]
[408616710,1773958750456,-500.0,0.0001159,2]
[408616711,1773958750486,-500.0,0.0001159,2]
[408616712,1773958750517,-500.0,0.0001159,2]
[408616713,1773958750549,-500.0,0.0001159,2]
[408616714,1773958750576,-292.80365537,0.0001159,2]
[408616715,1773958750604,-500.0,0.0001159,2]
[408616716,1773958750631,-500.0,0.0001159,2]
[408616717,1773958750657,-500.0,0.0001159,2]
[408616718,1773958750684,-500.0,0.0001159,2]
[408616719,1773958750710,-208.75823345,0.0001159,2]
[408616735,1773959431447,-349.71292969,9.5e-05,3]
[408616737,1773959431458,-5364.1277675,9.5e-05,3]
[408616738,1773959431467,-300.0,0.00010449,2]
[408616739,1773959431476,-300.0,0.00010449,2]
[408616740,1773959431485,-236.0,0.0001045,2]
[408616741,1773959431495,-4739.72344588,0.0001045,2]
[408616742,1773959431513,-260.27655412,0.0001045,2]
[408616743,1773959431522,-1456.76201565,0.00010545,2]
[408616744,1773959431534,-981.47839901,0.00010545,2]
[408616745,1773959431545,-1770.0,0.00010545,2]
[408616746,1773959431575,-791.75958534,0.00010545,2]
[408616747,1773959431585,-300.0,0.00011172,2]
[408616748,1773959431595,-300.0,0.00011172,2]
[408616749,1773959431604,-272.35600974,0.00011172,2]
[408616750,1773959431614,-240.85887537,0.0001159,2]
[408616751,1773959431623,-500.0,0.0001159,2]
[408616752,1773959431632,-500.0,0.0001159,2]
[408616754,1773959431644,-500.0,0.0001159,2]
[408616756,1773959431653,-500.0,0.0001159,2]
[408616757,1773959431663,-500.0,0.0001159,2]
[408616759,1773959431672,-500.0,0.0001159,2]
[408616760,1773959431682,-500.0,0.0001159,2]
[408616762,1773959431691,-641.39795543,0.0001159,2]
[408616764,1773959431700,-500.0,0.0001159,2]
[408616766,1773959431709,-500.0,0.0001159,2]
[408616768,1773959431721,-250.0,0.0001159,2]
[408616771,1773959431730,-195.0,0.0001159,2]
[408616773,1773959431740,-195.0,0.0001159,2]
[408616775,1773959431749,-195.0,0.0001159,2]
[408616777,1773959431759,-554.17,0.0001159,2]
[408616780,1773959431768,-166.66,0.00011627,2]
[408616782,1773959431777,-500.0,0.00011653,2]
[408616784,1773959431787,-1967.45989433,0.00011847,2]
[408616786,1773959431796,-554.17,0.00011864,2]
[408616787,1773959431805,-166.66,0.00011872,2]
[408616788,1773959431814,-166.66,0.00012117,2]
[408616789,1773959431823,-554.17,0.00012138,2]
[408616790,1773959431832,-241.0984,0.00012174,2]
[408616791,1773959431841,-1215.60609171,0.00012174,2]
[408616792,1773959431850,-374.34439291,0.00012273,2]
[408616793,1773959431859,-573.61677411,0.00012273,2]
[408616794,1773959431868,-197.91487954,0.00012273,2]
[408616795,1773959431877,-170.0,0.00012274,3]
[408616796,1773959431886,-158.0,0.00012274,3]
[408616797,1773959431894,-5174.35,0.00012327,2]
[408616798,1773959431904,-166.66,0.00012362,2]
[408616799,1773959431912,-554.17,0.00012412,2]
[408616800,1773959431921,-979.16666667,0.00012436,2]
[408616801,1773959431930,-166.66,0.00012607,2]
[408616802,1773959431939,-554.2,0.00012686,2]
[408616803,1773959431947,-5108.5244892,0.00012697,2]
[408616804,1773959431956,-300.0,0.00012748,2]
[408616805,1773959431966,-250.0,0.00012749,2]
[408616806,1773959431974,-195.0,0.00012749,2]
[408616807,1773959431983,-259.21928038,0.00012749,2]
[408616808,1773959431991,-300.0,0.00012749,2]
[408616809,1773959432000,-250.0,0.00012749,2]
[408616810,1773959432009,-288.44,0.00012779,2]
[408616811,1773959432018,-1215.60609163,0.0001281,2]
[408616812,1773959432027,-166.66,0.00012851,2]
[408616813,1773959432036,-507.0,0.000133,2]
[408616814,1773959432045,-3923.72067631,0.00013409,2]
[408616815,1773959432054,-1215.60609163,0.00013446,2]
[408616816,1773959432063,-500.0,0.00013698,2]
[408616817,1773959432072,-500.0,0.00013698,2]
[408616818,1773959432082,-186.91,0.00013699,2]
[408616819,1773959432091,-9999.99,0.00013699,2]
[408616820,1773959432100,-150.99,0.00013699,2]
[408616821,1773959432110,-1215.60609163,0.00014083,2]
[408616822,1773959432119,-288.44,0.00014376,2]
[408616823,1773959432129,-1215.60609163,0.00014719,2]
[408616824,1773959432138,-484.259,0.00014808,2]
[408616825,1773959432147,-225.157,0.00014808,2]
[408616826,1773959432157,-1344.0,0.00014808,2]
[408616827,1773959432166,-507.0,0.00014816,3]
[408616828,1773959432174,-32974.6857,0.00014968,2]
[408616829,1773959432183,-1000.0,0.00014968,2]
[408616830,1773959432192,-3806.77906586,0.00014971,2]
[408616831,1773959432205,-275.11046227,0.00014971,2]
[408616832,1773959432215,-0.20066587,0.00014984,2]
[408616833,1773959432702,-374.7505761,0.00014984,2]
[408616834,1773959432711,-148.73389857,0.00015,2]
[408616838,1773959437611,-101.26610143,0.00015,2]
[408616839,1773959437621,-166.66,0.00015277,2]
[408616840,1773959437630,-1121.63020827,0.00015355,2]
[408616841,1773959437643,-93.97588336,0.00015355,2]
[408616842,1773959437653,-192.07,0.00015507,2]
[408616843,1773959437663,-500.0,0.00015611,2]
[408616844,1773959437672,-166.66,0.00015781,2]
[408616845,1773959437681,-500.0,0.00015863,2]
[408616846,1773959437692,-630.65132795,0.000159,2]
[408616847,1773959437701,-288.44,0.00015974,2]
[408616848,1773959437710,-1215.60609163,0.00015991,2]
[408616849,1773959437721,-412.59669705,0.00016,2]
[408616850,1773959437733,-20310.0,0.00016,2]
[408616851,1773959437744,-519.57820263,0.00016,2]
[408616853,1773959437755,-9891.57037895,0.00016,2]
[408616854,1773959437767,-334.615,0.00016,2]
[408616855,1773959437785,-422.55999998,0.00016,2]
[408616856,1773959437798,-713.71647197,0.00016,2]
[408616857,1773959437810,-543.45646299,0.00016,2]
[408616862,1773959440372,-3565.18647994,0.00016,2]
[408616863,1773959440384,-255.96290187,0.00016,2]
[408616864,1773959440403,-380.30947352,0.00016,2]
[408616871,1773959442541,-290.0,0.00014808,2]
[408616872,1773959442980,-330.0,0.00014808,2]
[408616873,1773959442990,-6034.08690339,0.00016,2]
[408616905,1773959445682,-2150.09999997,0.00016,2]
[408616907,1773959445695,-9808.16646871,0.00016,2]
[408616908,1773959445749,-4901.64377145,0.00016,2]
[408616909,1773959445868,-3464.5849,0.00016,2]
[408616910,1773959445879,-800.0,0.00016,2]
[408616918,1773960207992,152.05,7.199e-05,2]
[408616923,1773960631650,-214.0,7.578e-05,2]
[408616924,1773960631659,-152.05,7.578e-05,2]
[408616925,1773960631668,-250.0,7.768e-05,2]
[408616926,1773960631677,-60.55347514,7.957e-05,2]
[408616927,1773960631717,-91.49652486,7.957e-05,2]
[408616928,1773960631727,-250.0,8.336e-05,2]
[408616929,1773960631737,-152.05,8.336e-05,2]
[408616930,1773960631746,-250.0,8.336e-05,2]
[408616931,1773960631755,-152.05,8.715e-05,2]
[408616932,1773960631764,-152.05,9.094e-05,2]
[408616933,1773960631775,-152.05,9.473e-05,2]
[408616934,1773960631785,-152.05,9.851e-05,2]
[408616935,1773960631795,-152.05,0.0001023,2]
[408616936,1773960631804,-152.05,0.00010609,2]
[408616937,1773960631813,-152.05,0.00010988,2]
[408616938,1773960631822,-152.05,0.00011367,2]
[408616939,1773960631832,-152.05,0.00011746,2]
[408616941,1773960631841,-152.05,0.00012125,2]
[408616942,1773960631853,-152.05,0.00012504,2]
[408616943,1773960631862,-152.05,0.00012883,2]
[408616944,1773960631872,-152.05,0.00013262,2]
[408616945,1773960631881,-507.0,0.000133,2]
[408616946,1773960631891,-3240.0,0.00013425,2]
[408616948,1773960631900,-152.05,0.00013641,2]
[408616950,1773960631909,-152.05,0.00014019,2]
[408616952,1773960631918,-150.0,0.0001409,2]
[408616954,1773960631927,-416.0,0.00014091,2]
[408616956,1773960631937,-150.0,0.00014091,2]
[408616958,1773960631947,-195.77,0.00014173,2]
[408616959,1773960631956,-200.0,0.00014173,2]
[408616961,1773960631966,-979.16666667,0.00014179,2]
[408616963,1773960631976,-161.6,0.00014267,2]
[408616964,1773960631986,-150.0,0.00014308,2]
[408616965,1773960631997,-152.05,0.00014398,2]
[408616966,1773960632006,-10000.0,0.00014471,2]
[408616967,1773960632015,-507.0,0.00014816,3]
[408616968,1773960632024,-500.0,0.00014904,2]
[408616969,1773960632034,-3512.0,0.00014918,2]
[408616970,1773960632044,-1344.0,0.00014918,2]
[408616971,1773960632055,-620.0,0.00014918,2]
[408616972,1773960632066,-1261.0,0.00014918,2]
[408616973,1773960632075,-6006.0,0.00014918,2]
[408616974,1773960632086,-2465.0,0.00014918,2]
[408616975,1773960632097,-250.0,0.00015,2]
[408616976,1773960632106,-2864.48,0.00015181,2]
[408616977,1773960632115,-1095.13873392,0.00015309,2]
[408616978,1773960632124,-4191.78,0.0001531,2]
[408616979,1773960632133,-656.2190167,0.00015379,2]
[408616980,1773960632142,-150.0,0.00015499,2]
[408616981,1773960632151,-152.17980856,0.000158,3]
[408616982,1773960632159,-159.63337563,0.000158,3]
[408616983,1773960632168,-4143.8693,0.000158,2]
[408616984,1773960632177,-382.16340833,0.000158,2]
[408616985,1773960632187,-2383.0,0.0001584,2]
[408616986,1773960632195,-1122.55,0.0001589,2]
[408616987,1773960632205,-436.69631279,0.00015899,2]
[408616988,1773960632216,-500.0,0.00015899,2]
[408616989,1773960632226,-500.0,0.00015899,2]
[408616990,1773960632235,-500.0,0.00015899,2]
[408616991,1773960632245,-500.0,0.00015899,2]
[408616992,1773960632254,-599.48137392,0.00015899,2]
[408616993,1773960632263,-500.0,0.00015899,2]
[408616994,1773960632272,-500.0,0.00015899,2]
[408616995,1773960632282,-500.0,0.00015899,2]
[408616996,1773960632291,-455.49793043,0.00015899,2]
[408616997,1773960632301,-401.53174188,0.00015899,2]
[408616998,1773960632311,-500.0,0.00015899,2]
[408616999,1773960632320,-500.0,0.00015899,2]
[408617000,1773960632329,-500.0,0.00015899,2]
[408617001,1773960632338,-500.0,0.00015899,2]
[408617002,1773960632347,-500.0,0.00015899,2]
[408617003,1773960632356,-500.0,0.00015899,2]
[408617004,1773960632366,-500.0,0.00015899,2]
[408617005,1773960632375,-500.0,0.00015899,2]
[408617006,1773960632384,-500.0,0.00015899,2]
[408617007,1773960632394,-500.0,0.00015899,2]
[408617008,1773960632403,-500.0,0.00015899,2]
[408617009,1773960632412,-500.0,0.00015899,2]
[408617010,1773960632421,-500.0,0.00015899,2]
[408617011,1773960632429,-500.0,0.00015899,2]
[408617012,1773960632439,-500.0,0.00015899,2]
[408617013,1773960632448,-500.0,0.00015899,2]
[408617014,1773960632458,-500.0,0.00015899,2]
[408617015,1773960632467,-500.0,0.00015899,2]
[408617016,1773960632476,-500.0,0.00015899,2]
[408617017,1773960632485,-500.0,0.00015899,2]
[408617018,1773960632494,-500.0,0.00015899,2]
[408617019,1773960632504,-500.0,0.00015899,2]
[408617020,1773960632513,-500.0,0.00015899,2]
[408617021,1773960632522,-500.0,0.00015899,2]
[408617022,1773960632532,-500.0,0.00015899,2]
[408617023,1773960632543,-14140.11105862,0.000159,2]
[408617024,1773960632556,-695.92687277,0.000159,2]
[408617025,1773960632576,-887.77170059,0.000159,2]
[408617028,1773960637783,-5374.16711633,0.000159,2]
[408617029,1773960637899,-9952.19315169,0.000159,2]
[408617030,1773960637909,-11118.30684831,0.000159,2]
[408617031,1773960637919,-435.48576193,0.000159,2]
[408617078,1773960640453,-3562.74443424,0.000159,2]
[408617087,1773960643056,-601.57600256,0.00014918,2]
[408617088,1773960643067,-3135.61495587,0.00014918,2]
[408617120,1773960645630,-20.80904157,0.00014918,2]
[408617121,1773960645639,-12869.87218308,0.000159,2]
[408617125,1773960645691,-20994.78700038,0.000159,2]
[408617243,1773961831847,-217.0,7.945e-05,2]
[408617244,1773961831857,-250.0,7.945e-05,2]
[408617245,1773961831866,-3260.086573,7.945e-05,2]
[408617246,1773961831876,-250.0,8.74e-05,2]
[408617247,1773961831886,-250.0,8.74e-05,2]
[408617248,1773961831895,-2097.77,0.00011819,2]
[408617249,1773961831904,-500.0,0.00012247,2]
[408617250,1773961831913,-979.16666667,0.00012645,2]
[408617251,1773961831922,-506.0,0.000133,2]
[408617252,1773961831931,-500.0,0.00013507,2]
[408617253,1773961831940,-192.29,0.00014137,2]
[408617254,1773961831949,-2000.0,0.00014233,2]
[408617255,1773961831958,-200.0,0.00014276,2]
[408617256,1773961831967,-500.0,0.00014409,2]
[408617257,1773961831976,-210767.4454,0.00014615,2]
[408617258,1773961831985,-7831.56231517,0.00014687,2]
[408617259,1773961831994,-150.0,0.00014715,2]
[408617260,1773961832003,-500.0,0.00014715,2]
[408617261,1773961832012,-500.0,0.00014715,2]
[408617262,1773961832021,-500.0,0.00014715,2]
[408617285,1773961832250,-500.0,0.00014715,2]
[408617287,1773961832260,-500.0,0.00014715,2]
[408617289,1773961832270,-500.0,0.00014715,2]
[408617291,1773961832279,-500.0,0.00014715,2]
[408617293,1773961832288,-500.0,0.00014715,2]
[408617295,1773961832297,-500.0,0.00014715,2]
[408617297,1773961832307,-500.0,0.00014715,2]
[408617299,1773961832320,-500.0,0.00014715,2]
[408617301,1773961832329,-500.0,0.00014715,2]
[408617303,1773961832338,-500.0,0.00014715,2]
[408617305,1773961832347,-500.0,0.00014715,2]
[408617307,1773961832358,-500.0,0.00014715,2]
[408617308,1773961832367,-500.0,0.00014715,2]
[408617310,1773961832376,-500.0,0.00014715,2]
[408617312,1773961832386,-500.0,0.00014715,2]
[408617314,1773961832395,-500.0,0.00014715,2]
[408617315,1773961832404,-500.0,0.00014715,2]
[408617316,1773961832414,-500.0,0.00014715,2]
[408617317,1773961832423,-500.0,0.00014715,2]
[408617318,1773961832432,-500.0,0.00014715,2]
[408617319,1773961832441,-500.0,0.00014715,2]
[408617320,1773961832451,-500.0,0.00014715,2]
[408617321,1773961832459,-500.0,0.00014715,2]
[408617322,1773961832469,-500.0,0.00014715,2]
[408617323,1773961832478,-500.0,0.00014715,2]
[408617324,1773961832487,-500.0,0.00014715,2]
[408617325,1773961832496,-500.0,0.00014715,2]
[408617326,1773961832508,-500.0,0.00014715,2]
[408617327,1773961832517,-500.0,0.00014715,2]
[408617328,1773961832525,-500.0,0.00014715,2]
[408617329,1773961832534,-500.0,0.00014715,2]
[408617330,1773961832543,-500.0,0.00014715,2]
[408617331,1773961832553,-500.0,0.00014715,2]
[408617332,1773961832562,-500.0,0.00014715,2]
[408617333,1773961832571,-500.0,0.00014715,2]
[408617334,1773961832580,-500.0,0.00014715,2]
[408617335,1773961832590,-500.0,0.00014715,2]
[408617336,1773961832599,-500.0,0.00014715,2]
[408617337,1773961832608,-500.0,0.00014715,2]
[408617338,1773961832618,-500.0,0.00014715,2]
[408617339,1773961832627,-500.0,0.00014715,2]
[408617340,1773961832637,-500.0,0.00014715,2]
[408617341,1773961832646,-500.0,0.00014715,2]
[408617342,1773961832655,-500.0,0.00014715,2]
[408617343,1773961832664,-500.0,0.00014715,2]
[408617344,1773961832673,-500.0,0.00014715,2]
[408617345,1773961832683,-500.0,0.00014715,2]
[408617346,1773961832692,-500.0,0.00014715,2]
[408617347,1773961832701,-500.0,0.00014715,2]
[408617348,1773961832710,-500.0,0.00014715,2]
[408617349,1773961832719,-500.0,0.00014715,2]
[408617350,1773961832729,-500.0,0.00014715,2]
[408617351,1773961832738,-500.0,0.00014715,2]
[408617352,1773961832747,-500.0,0.00014715,2]
[408617353,1773961832756,-500.0,0.00014715,2]
[408617354,1773961832765,-500.0,0.00014715,2]
[408617355,1773961832774,-500.0,0.00014715,2]
[408617356,1773961832782,-500.0,0.00014715,2]
[408617357,1773961832792,-500.0,0.00014715,2]
[408617358,1773961832801,-500.0,0.00014715,2]
[408617359,1773961832810,-500.0,0.00014715,2]
[408617360,1773961832819,-500.0,0.00014715,2]
[408617361,1773961832829,-500.0,0.00014715,2]
[408617362,1773961832838,-500.0,0.00014715,2]
[408617363,1773961832847,-500.0,0.00014715,2]
[408617364,1773961832857,-500.0,0.00014715,2]
[408617365,1773961832868,-500.0,0.00014715,2]
[408617366,1773961832877,-500.0,0.00014715,2]
[408617367,1773961832886,-500.0,0.00014715,2]
[408617368,1773961832895,-500.0,0.00014715,2]
[408617369,1773961832904,-284.60993934,0.00014715,2]
[408617370,1773961832916,-215.39006066,0.00014715,2]
[408617371,1773961832925,-500.0,0.00014715,2]
[408617372,1773961832935,-500.0,0.00014715,2]
[408617373,1773961832944,-500.0,0.00014715,2]
[408617374,1773961832953,-374.10495198,0.00014715,2]
[408617375,1773961832962,-500.0,0.00014715,2]
[408617376,1773961832971,-500.00000001,0.00014715,2]
[408617377,1773961832980,-174.767326,0.00014715,2]
[408617378,1773961832988,-500.0,0.00014715,2]
[408617379,1773961832999,-166.68,0.00014787,2]
[408617380,1773961833018,-506.0,0.00014851,3]
[408617381,1773961833029,-1344.0,0.00014918,2]
[408617382,1773961833038,-909.348,0.00014918,2]
[408617383,1773961833046,-973.93128292,0.00014918,2]
[408617385,1773961838008,-240.06871708,0.00014918,2]
[408617386,1773961838018,-6006.0,0.00014918,2]
[408617387,1773961838028,-2465.0,0.00014918,2]
[408617388,1773961838038,-1500.0,0.00015,2]
[408617389,1773961838047,-7831.56231509,0.00015044,2]
[408617390,1773961838056,-2229.8799048,0.00015291,2]
[408617391,1773961838066,-436.63291836,0.00015351,2]
[408617392,1773961838075,-500.0,0.0001537,2]
[408617393,1773961838084,-198.00460286,0.00015378,2]
[408617394,1773961838094,-414.88267373,0.00015378,2]
[408617395,1773961838103,-182.18224106,0.00015378,2]
[408617396,1773961838113,-180003.4214836,0.00015379,2]
[408617397,1773961838122,-7831.56231509,0.00015401,2]
[408617398,1773961838132,-5191.58534843,0.00015407,2]
[408617399,1773961838141,-192.07,0.00015507,2]
[408617400,1773961838150,-150.0,0.00015578,2]
[408617401,1773961838159,-298.239919,0.00015579,2]
[408617402,1773961838169,-436.63291831,0.00015634,2]
[408617403,1773961838178,-1090.17904776,0.00015699,2]
[408617405,1773961838187,-1111.93681363,0.00015758,2]
[408617406,1773961838203,-761.62710069,0.00015758,2]
[408617410,1773961840508,-414.0,0.00014918,2]
[408617411,1773961840517,-5957.99840077,0.00015758,2]
[408617412,1773961840527,-1986.99081853,0.00015763,2]
[408617457,1773962924069,-2058.30022852,8e-05,2]
[408617458,1773962924097,-170.68,0.00011798,2]
[408617459,1773962924123,-195.0,0.00011798,2]
[408617460,1773962924154,-247.0,0.00011798,2]
[408617461,1773962924180,-500.0,0.00012192,2]
[408617462,1773962924205,-195.0,0.00012484,2]
[408617463,1773962924230,-195.0,0.00012484,2]
[408617464,1773962924256,-195.0,0.00012484,2]
[408617465,1773962924281,-195.0,0.00012977,2]
[408617466,1773962924308,-300.0,0.00012977,2]
[408617467,1773962924333,-250.0,0.00012977,2]
[408617468,1773962924358,-166.66,0.00013175,2]
[408617469,1773962924383,-500.0,0.00013233,2]
[408617470,1773962924409,-507.0,0.000133,2]
[408617471,1773962924435,-166.66,0.00013453,2]
[408617472,1773962924461,-166.66,0.0001373,2]
[408617473,1773962924491,-1852.42,0.00013905,2]
[408617474,1773962924522,-200.0,0.00013963,2]
[408617475,1773962924549,-51939.61977148,0.0001399,2]
[408617476,1773962945931,-10000.01,9.5e-05,3]
[408617477,1773962945958,-195.0,0.00011745,2]
[408617478,1773962945982,-195.0,0.00013126,2]
[408617479,1773962946005,-195.0,0.00013126,2]
[408617480,1773962946027,-4123.36416948,0.0001399,2]
[408617481,1773962946050,-1500.0,0.00014,2]
[408617482,1773962946077,195.0,0.00013126,2]
[408617483,1773962946128,195.0,0.00013126,2]
[408617484,1773962950585,171.0,0.00014,2]
[408617485,1773962980379,-166.66,0.00014008,2]
[408617486,1773962980400,-600.0,0.0001407,2]
[408617487,1773962980422,-10000.0,0.00014133,2]
[408617488,1773962980443,-600.0,0.00014187,2]
[408617489,1773962980465,-600.0,0.00014187,2]
[408617490,1773962980486,-600.0,0.00014187,2]
[408617491,1773962980507,-979.16666667,0.00014187,2]
[408617492,1773962980528,-166.66,0.00014285,2]
[408617493,1773962980551,-168.88,0.00014297,2]
[408617494,1773962980573,-500.0,0.00014367,2]
[408617495,1773962980593,-10385.50220008,0.0001439,2]
[408617496,1773962980614,-18463.75696377,0.00014482,2]
[408617515,1773963032202,-1134.0,0.00014481,2]
[408617516,1773963032213,-600.0,0.00014481,2]
[408617517,1773963032223,-300.0,0.00014481,2]
[408617518,1773963032233,-300.0,0.00014481,2]
[408617519,1773963032243,-500.0,0.00014481,2]
[408617520,1773963032253,-195.0,0.00014481,2]
[408617521,1773963032263,-600.0,0.00014481,2]
[408617522,1773963032274,-600.0,0.00014481,2]
[408617523,1773963032285,-288.69090008,0.00014481,2]
[408617525,1773963032295,-300.0,0.00014482,2]
[408617527,1773963032304,-300.0,0.00014482,2]
[408617529,1773963032313,-300.0,0.00014482,2]
[408617531,1773963032328,-500.0,0.00014482,2]
[408617533,1773963032337,-500.0,0.00014482,2]
[408617535,1773963032347,-642.7609378,0.00014482,2]
[408617537,1773963032357,-9837.23303623,0.00014482,2]
[408617539,1773963032367,-270.0,0.00014482,2]
[408617541,1773963032376,-158.0,0.00014482,3]
[408617543,1773963032386,-171.0,0.00014482,3]
[408617544,1773963032396,-204.30705381,0.00014498,2]
[408617545,1773963032405,-195.0,0.00014498,2]
[408617546,1773963032415,-195.0,0.00014498,2]
[408617547,1773963032424,-195.0,0.00014498,2]
[408617548,1773963032434,-205.5487671,0.00014514,2]
[408617549,1773963032443,-678353.1706,0.00014515,2]
[408617550,1773963032453,-1000.0,0.00014516,2]
[408617551,1773963032462,-2500.0,0.00014516,2]
[408617552,1773963032471,-578.56442753,0.00014516,2]
[408617553,1773963032480,-5187.00189685,0.00014516,2]
[408617554,1773963032489,-4294.26332756,0.00014516,2]
[408617555,1773963032498,-166.66,0.00014562,2]
[408617556,1773963032507,-500.0,0.00014615,2]
[408617557,1773963032516,-500.0,0.00014615,2]
[408617558,1773963032535,-500.0,0.00014615,2]
[408617559,1773963032546,-500.0,0.00014615,2]
[408617560,1773963032555,-500.0,0.00014615,2]
[408617561,1773963032565,-500.0,0.00014615,2]
[408617562,1773963032575,-500.0,0.00014615,2]
[408617563,1773963032586,-500.0,0.00014615,2]
[408617564,1773963032596,-537.4104952,0.00014615,2]
[408617565,1773963032606,-500.0,0.00014615,2]
[408617566,1773963032615,-500.0,0.00014615,2]
[408617567,1773963032624,-250.0,0.00014615,2]
[408617568,1773963032636,-384.0851897,0.00014615,2]
[408617569,1773963032649,-513.59237161,0.00014615,2]
[408617570,1773963032659,-187573.6389,0.00014616,2]
[408617571,1773963032671,-151.0,0.00014616,2]
[408617572,1773963032684,-151.0,0.00014616,2]
[408617573,1773963032694,-151.0,0.00014616,2]
[408617574,1773963032704,-151.0,0.00014616,2]
[408617575,1773963032714,-151.0,0.00014616,2]
[408617576,1773963032724,-500.0,0.00014673,2]
[408617577,1773963032733,-500.0,0.00014673,2]
[408617578,1773963032747,-500.0,0.00014714,2]
[408617579,1773963032756,-500.0,0.00014714,2]
[408617580,1773963032766,-437.0,0.00014822,2]
[408617581,1773963032776,-507.0,0.00014888,3]
[408617582,1773963032786,-578.56442745,0.00014892,2]
[408617583,1773963032795,-5187.00189679,0.00014892,2]
[408617584,1773963032806,-73956.70218337,0.000149,2]
[408617585,1773963032817,-151.0,0.000149,2]
[408617586,1773963032827,-151.0,0.000149,2]
[408617587,1773963032836,-400.0,0.000149,5]
[408617588,1773963032846,-151.0,0.000149,2]
[408617589,1773963032856,-4294.26332753,0.00014999,2]
[408617590,1773963032866,-250.0,0.00015,2]
[408617591,1773963032875,-578.56442745,0.00015268,2]
[408617592,1773963032885,-5187.00189679,0.00015268,2]
[408617593,1773963032894,-36285.88630194,0.00015333,2]
[408617594,1773963032908,-321.0,0.00015333,2]
[408617595,1773963032919,-430.63,0.00015333,2]
[408617597,1773963038241,-2256.70555665,0.00014382,2]
[408617598,1773963038316,-552.93113016,0.00014382,2]
[408617601,1773963038328,-4992.61308658,0.00014382,2]
[408617604,1773963040759,-5533.0,0.00014382,2]
[408617605,1773963040779,-2039.47330564,0.00014382,2]
[408617607,1773963040790,-1550.0,0.00014382,2]
[408617609,1773963040817,-115248.68172097,0.00014382,2]
[408617611,1773963040826,-1555.75104826,0.00015333,2]
[408617613,1773963040835,-10625.6157716,0.00015333,2]
[408617614,1773963040845,-82812.87579212,0.00015333,2]
[408617615,1773963040858,-1644.51813256,0.00015333,2]
[408617616,1773963040869,-591.07158026,0.00015333,2]
[408617617,1773963040880,-644.38,0.00015333,2]
[408617637,1773963046125,-14044.00000002,0.00015333,2]
[408617643,1773963662505,-2090.51,0.00011507,2]
[408617644,1773963662529,-244.0,0.00011507,2]
[408617645,1773963662550,-216.37688297,0.00012304,2]
[408617646,1773963662572,-195.0,0.00012403,2]
[408617647,1773963662594,-195.0,0.00012658,2]
[408617648,1773963662616,-195.0,0.00012658,2]
[408617649,1773963662638,-507.0,0.000133,2]
[408617650,1773963662659,-507.0,0.000133,2]
[408617651,1773963662681,-195.0,0.00013614,2]
[408617652,1773963750580,-1500.0,0.00014213,2]
[408617653,1773963750603,-600.0,0.00014249,2]
[408617654,1773963750628,-195.0,0.00014284,2]
[408617655,1773963750652,-300.0,0.00014284,2]
[408617656,1773963750674,-500.0,0.00014284,2]